{"text_format":"1","workbook":"xlsx","n_sheets":8,"sheets":["Informasjon","Eksempel VK","Eksempel SK","Eksempel OK","Eksempel Feil","Standard kummer","Kumskisse mal","Utklippsbok"],"not_rendered":{"charts":0,"images":9,"macros":1,"external_links":0,"defined_names":0,"comments":0,"pivot_tables":0},"unopened":[],"bounds":{"document_bytes":16777216,"sheet_cells":100000,"rows_first":2000,"rows_last":500,"rows_between":2000,"halvings":0,"cell_chars":16384,"cell_head_chars":4096},"cells_cut":0,"cells_raw":0,"read":"whole","date_system":"1900"}

{"sheet":"Informasjon","index":0,"n_rows":19,"n_cols":1,"rows_kept":19,"cut":false,"hidden":false,"merged":[]}
["⚠️ Viktig før du starter"]
["Denne malen må brukes i skrivebordsversjonen av Excel. Den fungerer ikke fullt ut i nettleserversjonen."]
["Hvis du får opp meldingen \"Microsoft har blokkert makroer fra å kjøre\", høyreklikk filen i Filutforsker, velg Egenskaper, huk av for Fjern blokkering, åpne filen på nytt og velg Aktiver makroer."]
[]
["Standardmal for kumskisser – Karmøy kommune"]
["Dette er Karmøy kommunes standardmal for kumskisser. Denne er laget for å sikre standardiserte og effektive tegninger."]
["👉 Trykk her for å se veiledningsvideo for bruk av kumskissen"]
[]
["📁 Oversikt over arkene i Excel-filen (se fanene nederst)"]
["Eksempel VK/SK/OK - viser ønsket utforming for vann-, spillvann- og overvannskummer"]
["Eksempel feil – vanlige feil og hvordan unngå dem"]
["Standard kummer - inneholder mye brukte løsninger som skal gjøre det raskere å produsere kumskissene."]
["Kumskisse mal - er hovedarket der du lager selve kumskissen. Det inneholder felter som kan fylles ut og valg via rullegardinmenyer. Makroknappen nedenfor kan brukes til å duplisere arket så mange ganger du ønsker."]
["Utklippsbok - er en utklippstavle for kumskisser. Objektene er i riktig målestokk og kan enkelt kopieres og limes inn i kumskissen."]
[]
["⚙️ Makrofunksjoner"]
["Knappene nedenfor gjør arbeidet raskere:"]
["• Første knapp dupliserer arket \"Kumskisse mal\" til et nye ark for videre bruk."]
["• Andre knapp brukes for å raskt lagre alle ark med kumskisser som individuelle PDF-filer"]

{"sheet":"Eksempel VK","index":1,"n_rows":53,"n_cols":9,"rows_kept":53,"cut":false,"hidden":false,"merged":[[26,7,26,9],[27,7,27,9],[28,7,28,9],[29,7,29,9],[49,18,49,19],[25,7,25,9],[14,7,14,9],[15,7,15,9],[16,7,16,9],[17,7,17,9],[18,7,18,9],[19,7,19,9],[20,7,20,9],[21,7,21,9],[22,7,22,9],[23,7,23,9],[24,7,24,9],[13,7,13,9],[1,8,2,9],[3,2,3,4],[3,7,3,9],[4,7,4,9],[6,5,6,7],[6,8,6,9],[8,7,8,9],[9,7,9,9],[10,7,10,9],[11,7,11,9],[12,7,12,9]]}
[]
["KUMSKISSE",null,null,null,null,null,null,null,{"$error":"#VALUE!"}]
[]
["Byggeår:",null,2021,null,null,"Sist revidert:",null,{"$f":"(TODAY())","v":"2026-04-07"}]
["Kumtype:",null,"V","Kum dimensjon",1600,"Kum material",null,"PE"]
["Entreprenør:",null,"Karmøy Kommune",null,null,"Sted / gate:"]
["Koordinater (senter lokk - målegrunnlag NN2000):",null,null,null,null,"X:",null,null,"Y:"]
[]
[]
[]
[]
[]
[]
[]
[]
[]
[]
[]
[]
[]
[]
[]
[]
[]
[]
[]
[]
[]
[]
[]
["Skisse påføres retning (pil),  dim. ledning (mm), materiale og funksjon",null,null,null,null,"Foto kum (innvendig)"]
["Nr","Utstyr:",null,null,null,"Nr","Utstyr:"]
[1,"Lensepumpe",null,null,null,8]
[2,"Samleflens",null,null,null,9]
[3,"Brannpakke med serviceventil",null,null,null,10]
[4,"Lufteklokke",null,null,null,11]
[5,"4x Ventilkryss",null,null,null,12]
[6,null,null,null,null,13]
[7,null,null,null,null,14]
[]
[null,"Type/funksjon",null,"Nedmål:","Koter: "]
[]
[null,"Topp lokk",null,null,1.5249999999999999]
[]
[null,"Overløp",null,{"$f":"IF(E45<>\"\", $E$43-E45, \"\")","v":""}]
[]
[null,"Vann",null,{"$f":"IF(E47<>\"\", $E$43-E47, \"\")","v":1.504},2.1000000000000001E-2]
[null,"Spillvann",null,{"$f":"IF(E48<>\"\", $E$43-E48, \"\")","v":""}]
[null,"Ovevann",null,{"$f":"IF(E49<>\"\", $E$43-E49, \"\")","v":""}]
[]
[null,"Drenering",null,{"$f":"IF(E51<>\"\", $E$43-E51, \"\")","v":1.514},1.0999999999999999E-2]
[]
["Andre kommentarer:"]

{"sheet":"Eksempel SK","index":2,"n_rows":53,"n_cols":9,"rows_kept":53,"cut":false,"hidden":false,"merged":[[26,7,26,9],[27,7,27,9],[28,7,28,9],[29,7,29,9],[49,18,49,19],[25,7,25,9],[14,7,14,9],[15,7,15,9],[16,7,16,9],[17,7,17,9],[18,7,18,9],[19,7,19,9],[20,7,20,9],[21,7,21,9],[22,7,22,9],[23,7,23,9],[24,7,24,9],[13,7,13,9],[1,8,2,9],[3,2,3,4],[3,7,3,9],[4,7,4,9],[6,5,6,7],[6,8,6,9],[8,7,8,9],[9,7,9,9],[10,7,10,9],[11,7,11,9],[12,7,12,9]]}
[]
["KUMSKISSE",null,null,null,null,null,null,null,{"$error":"#VALUE!"}]
[]
["Byggeår:",null,2021,null,null,"Sist revidert:",null,{"$f":"(TODAY())","v":"2026-04-07"}]
["Kumtype:",null,"SP","Kum dimensjon",1000,"Kum material",null,"Betong"]
["Entreprenør:",null,"Karmøy Kommune",null,null,"Sted / gate:",null,"Grunnvikvegen "]
["Koordinater (senter lokk - målegrunnlag NN2000):",null,null,null,null,"X:",null,null,"Y:"]
[]
[]
[]
[]
[]
[]
[]
[]
[]
[]
[]
[]
[]
[]
[]
[]
[]
[]
[]
[]
[]
[]
[]
["Skisse påføres retning (pil),  dim. ledning (mm), materiale og funksjon",null,null,null,null,"Foto kum (innvendig)"]
["Nr","Utstyr:",null,null,null,"Nr","Utstyr:"]
[1,"Stige",null,null,null,8]
[2,null,null,null,null,9]
[3,null,null,null,null,10]
[4,null,null,null,null,11]
[5,null,null,null,null,12]
[6,null,null,null,null,13]
[7,null,null,null,null,14]
[]
[null,"Type/funksjon",null,"Nedmål:","Koter: "]
[]
[null,"Topp lokk",null,null,5.194]
[]
[null,"Overløp",null,{"$f":"IF(E45<>\"\", $E$43-E45, \"\")","v":""}]
[]
[null,"Vann",null,{"$f":"IF(E47<>\"\", $E$43-E47, \"\")","v":""}]
[null,"Spillvann",null,{"$f":"IF(E48<>\"\", $E$43-E48, \"\")","v":2.492},2.702]
[null,"Ovevann",null,{"$f":"IF(E49<>\"\", $E$43-E49, \"\")","v":""}]
[]
[null,"Drenering",null,{"$f":"IF(E51<>\"\", $E$43-E51, \"\")","v":""}]
[]
["Andre kommentarer:"]

{"sheet":"Eksempel OK","index":3,"n_rows":53,"n_cols":9,"rows_kept":53,"cut":false,"hidden":false,"merged":[[26,7,26,9],[27,7,27,9],[28,7,28,9],[29,7,29,9],[49,18,49,19],[25,7,25,9],[14,7,14,9],[15,7,15,9],[16,7,16,9],[17,7,17,9],[18,7,18,9],[19,7,19,9],[20,7,20,9],[21,7,21,9],[22,7,22,9],[23,7,23,9],[24,7,24,9],[13,7,13,9],[1,8,2,9],[3,2,3,4],[3,7,3,9],[4,7,4,9],[6,5,6,7],[6,8,6,9],[8,7,8,9],[9,7,9,9],[10,7,10,9],[11,7,11,9],[12,7,12,9]]}
[]
["KUMSKISSE",null,null,null,null,null,null,null,{"$error":"#VALUE!"}]
[]
["Byggeår:",null,2021,null,null,"Sist revidert:",null,{"$f":"(TODAY())","v":"2026-04-07"}]
["Kumtype:",null,"OV","Kum dimensjon",1000,"Kum material",null,"Betong"]
["Entreprenør:",null,"Karmøy kommune",null,null,"Sted / gate:",null,"Grunnvikvegen"]
["Koordinater (senter lokk - målegrunnlag NN2000):",null,null,null,null,"X:",null,null,"Y:"]
[]
[]
[]
[]
[]
[]
[]
[]
[]
[]
[]
[]
[]
[]
[]
[]
[]
[]
[]
[]
[]
[]
[]
["Skisse påføres retning (pil),  dim. ledning (mm), materiale og funksjon",null,null,null,null,"Foto kum (innvendig)"]
["Nr","Utstyr:",null,null,null,"Nr","Utstyr:"]
[1,"Stige",null,null,null,8]
[2,null,null,null,null,9]
[3,null,null,null,null,10]
[4,null,null,null,null,11]
[5,null,null,null,null,12]
[6,null,null,null,null,13]
[7,null,null,null,null,14]
[]
[null,"Type/funksjon",null,"Nedmål:","Koter: "]
[]
[null,"Topp lokk",null,null,5.2329999999999997]
[]
[null,"Overløp",null,{"$f":"IF(E45<>\"\", $E$43-E45, \"\")","v":""}]
[]
[null,"Vann",null,{"$f":"IF(E47<>\"\", $E$43-E47, \"\")","v":""}]
[null,"Spillvann",null,{"$f":"IF(E48<>\"\", $E$43-E48, \"\")","v":""}]
[null,"Overvann",null,{"$f":"IF(E49<>\"\", $E$43-E49, \"\")","v":3.1329999999999996},2.1]
[]
[null,"Drenering",null,{"$f":"IF(E51<>\"\", $E$43-E51, \"\")","v":""}]
[]
["Andre kommentarer:"]

{"sheet":"Eksempel Feil","index":4,"n_rows":112,"n_cols":12,"rows_kept":112,"cut":false,"hidden":false,"merged":[[86,7,86,9],[87,7,87,9],[88,7,88,9],[80,7,80,9],[81,7,81,9],[82,7,82,9],[83,7,83,9],[84,7,84,9],[85,7,85,9],[79,7,79,9],[68,7,68,9],[69,7,69,9],[70,7,70,9],[71,7,71,9],[72,7,72,9],[73,7,73,9],[74,7,74,9],[75,7,75,9],[76,7,76,9],[77,7,77,9],[78,7,78,9],[62,2,62,4],[62,7,62,9],[63,7,63,9],[65,5,65,7],[65,8,65,9],[67,7,67,9],[26,7,26,9],[27,7,27,9],[28,7,28,9],[29,7,29,9],[49,18,49,19],[60,8,61,9],[20,7,20,9],[21,7,21,9],[22,7,22,9],[23,7,23,9],[24,7,24,9],[25,7,25,9],[19,7,19,9],[8,7,8,9],[9,7,9,9],[10,7,10,9],[11,7,11,9],[12,7,12,9],[13,7,13,9],[14,7,14,9],[15,7,15,9],[16,7,16,9],[17,7,17,9],[18,7,18,9],[1,8,2,9],[3,2,3,4],[3,7,3,9],[4,7,4,9],[6,5,6,7],[6,8,6,9]]}
[]
["KUMSKISSE",null,null,null,"Nordpil skal alltid peke rett opp",null,null,null,{"$error":"#VALUE!"}]
[]
["Byggeår:",null,null,null,null,"Sist revidert:",null,{"$f":"(TODAY())","v":"2026-04-07"},null,null,null,"Her er et eksemepel på noen vanlige feil og hvordan du kan ungå disse."]
["Kumtype:",null,"V","Kum dimensjon",2000,"Kum material",null,"Betong",null,null,null,"Kommentarer til feilene er markert i rødt"]
["Entreprenør:",null,"Karmøy kommune",null,null,"Sted / gate:",null,null,null,null,null,"Nedenfor er det vist samme kum, men uten feil."]
["Koordinater (senter lokk - målegrunnlag NN2000):",null,null,null,null,"X:",null,null,"Y:"]
[]
[]
[]
[]
[]
[]
[]
[]
[]
[]
[]
[]
[]
[]
[]
[]
[]
[]
[]
[]
[]
[]
[]
["Skisse påføres retning (pil),  dim. ledning (mm), materiale og funksjon",null,null,null,null,"Foto kum (innvendig)"]
["Nr","Utstyr:",null,null,null,"Nr","Utstyr:"]
[1,null,null,null,null,8]
[2,null,null,null,null,9]
[3,null,null,null,null,10]
[4,null,null,null,null,11]
[5,null,null,null,null,12]
[6,null,null,null,null,13]
[7,null,null,null,null,14]
[]
[null,"Type/funksjon",null,"Nedmål:","Koter: "]
[]
[null,"Topp lokk",null,null,64]
[]
[null,"Overløp",null,{"$f":"IF(E45<>\"\", $E$43-E45, \"\")","v":""}]
[]
[null,"Vann",null,{"$f":"IF(E47<>\"\", $E$43-E47, \"\")","v":1.5},62.5]
[null,"Spillvann",null,{"$f":"IF(E48<>\"\", $E$43-E48, \"\")","v":""}]
[null,"Ovevann",null,{"$f":"IF(E49<>\"\", $E$43-E49, \"\")","v":""}]
[]
[null,"Drenering",null,{"$f":"IF(E51<>\"\", $E$43-E51, \"\")","v":""}]
[]
["Andre kommentarer:"]
[]
[]
[]
[]
[]
[]
[]
["KUMSKISSE",null,null,null,null,null,null,null,{"$error":"#VALUE!"}]
[]
["Byggeår:",null,2025,null,null,"Sist revidert:",null,{"$f":"(TODAY())","v":"2026-04-07"}]
["Kumtype:",null,"V","Kum dimensjon",2000,"Kum material",null,"Betong"]
["Entreprenør:",null,"Karmøy Kommune",null,null,"Sted / gate:"]
["Koordinater (senter lokk - målegrunnlag NN2000):",null,null,null,null,"X:",null,null,"Y:"]
[]
[]
[]
[]
[]
[]
[]
[]
[]
[]
[]
[]
[]
[]
[]
[]
[]
[]
[]
[]
[]
[]
[]
["Skisse påføres retning (pil),  dim. ledning (mm), materiale og funksjon",null,null,null,null,"Foto kum (innvendig)"]
["Nr","Utstyr:",null,null,null,"Nr","Utstyr:"]
[1,"Mengdemåler",null,null,null,8]
[2,"Stengeventil",null,null,null,9]
[3,null,null,null,null,10]
[4,null,null,null,null,11]
[5,null,null,null,null,12]
[6,null,null,null,null,13]
[7,null,null,null,null,14]
[]
[null,"Type/funksjon",null,"Nedmål:","Koter: "]
[]
[null,"Topp lokk",null,null,64]
[]
[null,"Overløp",null,{"$f":"IF(E104<>\"\", $E$43-E104, \"\")","v":""}]
[]
[null,"Vann",null,{"$f":"IF(E106<>\"\", $E$43-E106, \"\")","v":""}]
[null,"Spillvann",null,{"$f":"IF(E107<>\"\", $E$43-E107, \"\")","v":1.5},62.5]
[null,"Ovevann",null,{"$f":"IF(E108<>\"\", $E$43-E108, \"\")","v":""}]
[]
[null,"Drenering",null,{"$f":"IF(E110<>\"\", $E$43-E110, \"\")","v":""}]
[]
["Andre kommentarer:"]

{"sheet":"Standard kummer","index":5,"n_rows":27,"n_cols":40,"rows_kept":27,"cut":false,"hidden":false,"merged":[]}
[null,"NB husk å kopiere konstruksjonen, ikke cellene!!!"]
[]
[]
[]
[]
[]
[]
[]
[]
[]
[]
[]
[]
[null,null,"Standard kumkryss med 4xventil og brannpakke",null,null,null,null,null,null,null,null,null,null,null,null,"Standard spillvann med kråkefot",null,null,null,null,null,null,null,null,null,null,null,null,"Standard Overvann med kråkefot",null,null,null,null,null,null,null,null,null,null,"Standard Overvann med kryss"]
[]
[]
[]
[]
[]
[]
[]
[]
[]
[]
[]
[]
[null,null,"Standard kumkryss med 3xventil og brannpakke",null,null,null,null,null,null,null,null,null,null,null,null,"Standard kumkryss med 2xventil og brannpakke"]

{"sheet":"Kumskisse mal","index":6,"n_rows":52,"n_cols":9,"rows_kept":52,"cut":false,"hidden":false,"merged":[[25,7,25,9],[26,7,26,9],[27,7,27,9],[28,7,28,9],[24,7,24,9],[21,7,21,9],[22,7,22,9],[13,7,13,9],[14,7,14,9],[15,7,15,9],[16,7,16,9],[17,7,17,9],[23,7,23,9],[12,7,12,9],[0,8,1,9],[2,2,2,4],[2,7,2,9],[3,7,3,9],[5,5,5,7],[5,8,5,9],[7,7,7,9],[8,7,8,9],[9,7,9,9],[10,7,10,9],[11,7,11,9],[18,7,18,9],[19,7,19,9],[20,7,20,9]]}
["KUMSKISSE",null,null,null,null,null,null,null,{"$error":"#VALUE!"}]
[]
["Byggeår:",null,null,null,null,"Sist revidert:",null,{"$f":"(TODAY())","v":"2026-04-07"}]
["Kumtype:",null,"V","Kum dimensjon",null,"Kum material",null,"PE"]
["Entreprenør:",null,null,null,null,"Sted / gate:"]
["Koordinater (senter lokk - målegrunnlag NN2000):",null,null,null,null,"X:",null,null,"Y:"]
[]
[]
[]
[]
[]
[]
[]
[]
[]
[]
[]
[]
[]
[]
[]
[]
[]
[]
[]
[]
[]
[]
[]
["Skisse påføres retning (pil),  dim. ledning (mm), materiale og funksjon",null,null,null,null,"Foto kum (innvendig)"]
["Nr","Utstyr:",null,null,null,"Nr","Utstyr:"]
[1,null,null,null,null,8]
[2,null,null,null,null,9]
[3,null,null,null,null,10]
[4,null,null,null,null,11]
[5,null,null,null,null,12]
[6,null,null,null,null,13]
[7,null,null,null,null,14]
[]
[null,"Type/funksjon",null,"Nedmål:","Koter: "]
[]
[null,"Topp lokk"]
[]
[null,"Overløp",null,{"$f":"IF(E44<>\"\", $E$42-E44, \"\")","v":""}]
[]
[null,"Vann",null,{"$f":"IF(E46<>\"\", $E$42-E46, \"\")","v":""}]
[null,"Spillvann",null,{"$f":"IF(E47<>\"\", $E$42-E47, \"\")","v":""}]
[null,"Ovevann",null,{"$f":"IF(E48<>\"\", $E$42-E48, \"\")","v":""}]
[]
[null,"Drenering",null,{"$f":"IF(E50<>\"\", $E$42-E50, \"\")","v":""}]
[]
["Andre kommentarer:"]

{"sheet":"Utklippsbok","index":7,"n_rows":29,"n_cols":13,"rows_kept":29,"cut":false,"hidden":false,"merged":[]}
[]
[]
[]
[null,"Ventil",null,null,null,"Vannrør"]
[]
[]
[]
[null,"Brannventil",null,null,null,"Spillvannsrør"]
[]
[]
[]
[null,"mengdemåler",null,null,null,"Overvannsrør/drenering"]
[]
[null,null,null,null,null,"OVL løp"]
[]
[null,"Trykkmåler",null,null,null,"Div rør (eks. trekkerør)"]
[]
[]
[]
[null,"Tilbakeslagsventil",null,null,null,"Lufteklokke",null,null,null,null,null,null,"Kumkonstruksjon"]
[]
[]
[]
[null,"Reduksjonsventil",null,null,null,"Alt utstyr som ikke har eget symbol må merkes i kumbildet og noteres med nummer i utstyrsliste på kumskisse"]
[]
[]
[null,"Tekstboks"]
[]
[null,"Samleflenser"]